[Event "Fagernes Chess Open 2024"]
[Site "Fagernes"]
[Date "2024.03.27"]
[Round "5.7"]
[White "Odden, Jan Ove"]
[Black "Yilmaz, Kazim"]
[Result "0-1"]
[ECO "D43"]
[WhiteElo "1723"]
[BlackElo "1805"]
[Annotator "NA RC"]
[PlyCount "100"]
[EventDate "2024.03.25"]
[EventType "swiss"]
[EventCountry "NOR"]
[SourceTitle "playchess.com"]
[Source "ChessBase"]
[SourceQuality "1"]
[TimeControl "40/6000+30:2400+30"]

1. d4 {[%emt 0:00:05]} Nf6 {[%emt 0:00:05]} 2. c4 {[%emt 0:00:09]} e6 {[%emt 0:00:05]} 3. Nc3 {[%emt 0:00:13]} Bb4 {[%emt 0:00:11]} 4. Qc2 {[%emt 0:01:15]} d5 {[%emt 0:00:12]} 5. Nf3 {[%emt 0:00:36]} c6 {[%emt 0:01:35]} 6. Bg5 {[%emt 0:03:07]} Nbd7 {[%emt 0:00:30]} 7. a3 {[%emt 0:02:04]} Bxc3+ {[%emt 0:01:48]} 8. bxc3 {[%emt 0:02:43]} Qa5 {[%emt 0:00:37]} 9. cxd5 {[%emt 0:03:13]} exd5 {[%emt 0:00:44]} 10. Bxf6 {[%emt 0:05:12]} Nxf6 {[%emt 0:00:08]} 11. Nd2 {[%emt 0:00:37]} O-O {[%emt 0:00:20]} 12. e3 {[%emt 0:00:55]} b6 {[%emt 0:03:56]} 13. a4 {[%emt 0:02:22]} Ne4 {[%emt 0:03:17]} 14. Nxe4 {[%emt 0:12:14]} dxe4 {[%emt 0:00:08]} 15. Qd2 {[%emt 0:03:10]} Ba6 {[%emt 0:02:01]} 16. c4 {[%emt 0:02:09]} Qxd2+ {[%emt 0:00:08]} 17. Kxd2 {[%emt 0:00:10]} Rfd8 {[%emt 0:02:01]} 18. h4 {[%emt 0:03:03]} Bc8 {[%emt 0:04:25]} 19. Be2 {[%emt 0:03:56]} Be6 {[%emt 0:04:25]} 20. Rac1 {[%emt 0:07:48]} a6 {[%emt 0:07:53]} 21. Rhd1 {[%emt 0:06:50]} Rab8 {[%emt 0:01:46]} 22. Ke1 {[%emt 0:03:03]} b5 {[%emt 0:01:35]} 23. cxb5 {[%emt 0:08:29]} axb5 {[%emt 0:00:39]} 24. axb5 {[%emt 0:01:27]} cxb5 {[%emt 0:00:09]} 25. Rc5 {[%emt 0:03:12]} Rd5 {[%emt 0:07:51]} 26. Rxd5 {[%emt 0:08:31]} Bxd5 {[%emt 0:00:10]} 27. Rb1 {[%emt 0:00:13]} b4 {[%emt 0:01:44]} 28. Kd2 {[%emt 0:02:47]} Kf8 {[%emt 0:01:06]} 29. f3 {[%emt 0:01:00]} f5 {[%emt 0:01:20]} 30. fxe4 {[%emt 0:01:41]} fxe4 {[%emt 0:01:38]} 31. Bd1 {[%emt 0:04:00]} Ke7 {[%emt 0:03:25]} 32. Bb3 {[%emt 0:02:15]} Kd6 {[%emt 0:02:02]} 33. Bxd5 {[%emt 0:01:23]} Kxd5 {[%emt 0:00:05]} 34. Rc1 {[%emt 0:00:23]} Ra8 {[%emt 0:01:31]} 35. Rc5+ {[%emt 0:01:30]} Kd6 {[%emt 0:00:13]} 36. Kc1 {[%emt 0:03:22]} Ra3 {[%emt 0:01:10]} 37. Rb5 {[%emt 0:08:58]} Rxe3 {[%emt 0:00:56]} 38. Rxb4 {[%emt 0:00:21]} Kd5 {[%emt 0:02:30]} 39. Rb5+ {[%emt 0:01:18]} Kxd4 {[%emt 0:00:09]} 40. Rg5 {[%emt 0:00:19]} g6 {[%emt 0:00:11]} 41. Kd2 {[%emt 0:40:44]} Ra3 {[%emt 0:40:32]} 42. h5 {[%emt 0:01:21]} gxh5 {[%emt 0:02:07]} 43. Rxh5 {[%emt 0:00:47]} Ra2+ {[%emt 0:00:40]} 44. Ke1 {[%emt 0:00:20]} Kd3 {[%emt 0:00:38]} 45. Rxh7 {[%emt 0:00:00]} Ra1+ {[%emt 0:00:00]} 46. Kf2 {[%emt 0:00:00]} e3+ {[%emt 0:00:00]} 47. Kf3 {[%emt 0:00:00]} Rf1+ {[%emt 0:00:00]} 48. Kg4 {[%emt 0:00:00]} e2 {[%emt 0:00:00]} 49. Rd7+ {[%emt 0:00:00]} Kc4 {[%emt 0:00:00]} 50. Rc7+ {[%emt 0:00:00]} Kd5 {[%emt 0:01:20]} 0-1

[Event "Fagernes Chess Open 2024"]
[Site "Fagernes"]
[Date "2024.03.27"]
[Round "5.8"]
[White "Johansson, Henrik"]
[Black "Shehzad, Alina"]
[Result "1/2-1/2"]
[ECO "D05"]
[WhiteElo "1736"]
[BlackElo "1670"]
[Annotator "NA RC"]
[PlyCount "56"]
[EventDate "2024.03.25"]
[EventType "swiss"]
[EventCountry "NOR"]
[SourceTitle "playchess.com"]
[Source "ChessBase"]
[SourceQuality "1"]
[TimeControl "40/6000+30:2400+30"]

1. d4 {[%emt 0:00:39]} d5 {[%emt 0:00:18]} 2. Nf3 {[%emt 0:00:12]} e6 {[%emt 0:00:12]} 3. e3 {[%emt 0:01:27]} Be7 {[%emt 0:02:18]} 4. Bd3 {[%emt 0:01:45]} Nf6 {[%emt 0:00:46]} 5. b3 {[%emt 0:02:13]} O-O {[%emt 0:00:26]} 6. Bb2 {[%emt 0:00:20]} Nbd7 {[%emt 0:03:58]} 7. Nbd2 {[%emt 0:00:29]} c5 {[%emt 0:00:59]} 8. O-O {[%emt 0:00:36]} b6 {[%emt 0:03:50]} 9. Ne5 {[%emt 0:05:34]} Bb7 {[%emt 0:01:51]} 10. f4 {[%emt 0:02:18]} Rc8 {[%emt 0:05:57]} 11. Rc1 {[%emt 0:11:08]} Qc7 {[%emt 0:20:36]} 12. Nxd7 {[%emt 0:06:11]} Nxd7 {[%emt 0:05:40]} 13. dxc5 {[%emt 0:02:17]} bxc5 {[%emt 0:09:59]} 14. Bxh7+ {[%emt 0:10:28]} Kxh7 {[%emt 0:06:15]} 15. Qh5+ {[%emt 0:02:09]} Kg8 {[%emt 0:01:39]} 16. Bxg7 {[%emt 0:01:09]} Kxg7 {[%emt 0:24:34]} 17. Qg4+ {[%emt 0:00:14]} Kh8 {[%emt 0:01:03]} 18. Rf3 {[%emt 0:00:11]} Nf6 {[%emt 0:00:56]} 19. Rh3+ {[%emt 0:00:16]} Nh7 {[%emt 0:00:09]} 20. Qh5 {[%emt 0:00:15]} Bh4 {[%emt 0:01:31]} 21. Qxh4 {[%emt 0:03:30]} f6 {[%emt 0:00:51]} 22. Nf3 {[%emt 0:01:24]} Qf7 {[%emt 0:06:08]} 23. Qh6 {[%emt 0:07:42]} Rg8 {[%emt 0:02:13]} 24. Nh4 {[%emt 0:03:39]} Qg7 {[%emt 0:03:20]} 25. Qh5 {[%emt 0:01:49]} Qg4 {[%emt 0:01:20]} 26. Qh6 {[%emt 0:02:23]} Qg7 {[%emt 0:00:21]} 27. Qh5 {[%emt 0:00:41]} Qg4 {[%emt 0:00:08]} 28. Qh6 {[%emt 0:00:40]} Qg7 {[%emt 0:00:07]} 1/2-1/2

[Event "Fagernes Chess Open 2024"]
[Site "Fagernes"]
[Date "2024.03.27"]
[Round "5.9"]
[White "Vreugdenhil, Maarten"]
[Black "Nordahl, Frederik"]
[Result "1/2-1/2"]
[ECO "A57"]
[WhiteElo "1721"]
[BlackElo "1675"]
[Annotator "NA RC"]
[PlyCount "34"]
[EventDate "2024.03.25"]
[EventType "swiss"]
[EventCountry "NOR"]
[SourceTitle "playchess.com"]
[Source "ChessBase"]
[SourceQuality "1"]
[TimeControl "40/6000+30:2400+30"]

1. d4 {[%emt 0:00:09]} Nf6 {[%emt 0:00:04]} 2. c4 {[%emt 0:01:03]} c5 {[%emt 0:00:03]} 3. d5 {[%emt 0:00:26]} b5 {[%emt 0:00:05]} 4. cxb5 {[%emt 0:00:20]} a6 {[%emt 0:00:24]} 5. e3 {[%emt 0:00:07]} d6 {[%emt 0:00:12]} 6. a4 {[%emt 0:01:34]} g6 {[%emt 0:00:11]} 7. Nc3 {[%emt 0:04:55]} Bg7 {[%emt 0:00:25]} 8. Be2 {[%emt 0:02:40]} Qa5 {[%emt 0:00:29]} 9. Bd2 {[%emt 0:00:50]} O-O {[%emt 0:01:18]} 10. Nf3 {[%emt 0:02:30]} axb5 {[%emt 0:00:19]} 11. Nxb5 {[%emt 0:00:43]} Qb6 {[%emt 0:00:12]} 12. Bc3 {[%emt 0:03:12]} Bb7 {[%emt 0:00:50]} 13. Bc4 {[%emt 0:00:19]} Na6 {[%emt 0:01:25]} 14. O-O {[%emt 0:03:25]} Qd8 {[%emt 0:01:07]} 15. Qb3 {[%emt 0:01:28]} Qd7 {[%emt 0:03:19]} 16. Rfd1 {[%emt 0:00:47]} Rfb8 {[%emt 0:00:21]} 17. Rab1 {[%emt 0:08:27]} Qg4 {[%emt 0:17:38]} 1/2-1/2

[Event "Fagernes Chess Open 2024"]
[Site "Fagernes"]
[Date "2024.03.28"]
[Round "6.1"]
[White "Strand, Amund Pihl"]
[Black "Ali, Karim"]
[Result "1-0"]
[ECO "A17"]
[WhiteElo "1860"]
[BlackElo "1855"]
[Annotator "NA RC"]
[PlyCount "133"]
[EventDate "2024.03.25"]
[EventType "swiss"]
[EventCountry "NOR"]
[SourceTitle "playchess.com"]
[Source "ChessBase"]
[SourceQuality "1"]
[TimeControl "40/6000+30:2400+30"]

1. c4 {[%emt 0:00:04]} e6 {[%emt 0:01:03]} 2. Nc3 {[%emt 0:00:10]} Nf6 {[%emt 0:00:07]} 3. Nf3 {[%emt 0:00:37]} d5 {[%emt 0:01:05]} 4. e3 {[%emt 0:00:07]} Bd6 {[%emt 0:04:33]} 5. b3 {[%emt 0:05:26]} O-O {[%emt 0:01:42]} 6. Bb2 {[%emt 0:00:07]} Qe7 {[%emt 0:06:28]} 7. d4 {[%emt 0:04:15]} Ba3 {[%emt 0:02:07]} 8. Qc1 {[%emt 0:13:03]} Bxb2 {[%emt 0:00:33]} 9. Qxb2 {[%emt 0:00:08]} a5 {[%emt 0:14:14]} 10. Bd3 {[%emt 0:03:14]} c5 $14 {[%emt 0:01:10]} 11. cxd5 {[%emt 0:06:37]} cxd4 {[%emt 0:04:53]} 12. Nxd4 {[%emt 0:03:12]} exd5 {[%emt 0:01:57]} 13. O-O {[%emt 0:00:35]} Nc6 {[%emt 0:00:38]} 14. Nxc6 {[%emt 0:11:45]} bxc6 {[%emt 0:00:10]} 15. Na4 {[%emt 0:00:14]} Ba6 {[%emt 0:18:10]} 16. Rfd1 {[%emt 0:03:45]} Bxd3 {[%emt 0:10:02]} 17. Rxd3 {[%emt 0:00:07]} Rab8 {[%emt 0:03:30]} 18. Qc3 {[%emt 0:04:20]} Ne4 {[%emt 0:06:12]} 19. Qxa5 {[%emt 0:04:41]} Nxf2 {[%emt 0:00:17]} 20. Rc3 {[%emt 0:08:39]} Ng4 {[%emt 0:05:55]} 21. h3 {[%emt 0:11:11]} Ne5 {[%emt 0:00:33]} 22. Qc5 {[%emt 0:02:54]} Qg5 {[%emt 0:02:32]} 23. Rf1 {[%emt 0:01:48]} Rbe8 {[%emt 0:05:20]} 24. Qd4 {[%emt 0:00:51]} f5 {[%emt 0:01:17]} 25. Qf4 {[%emt 0:08:55]} Qf6 {[%emt 0:00:49]} 26. Qd4 {[%emt 0:00:40]} g5 {[%emt 0:01:06]} 27. Nc5 {[%emt 0:02:47]} Re7 {[%emt 0:03:28]} 28. Nd3 {[%emt 0:02:50]} Nxd3 {[%emt 0:02:02]} 29. Qxd3 {[%emt 0:00:35]} Qe6 {[%emt 0:01:47]} 30. a4 {[%emt 0:00:30]} f4 {[%emt 0:02:44]} 31. exf4 {[%emt 0:01:40]} Rxf4 {[%emt 0:00:36]} 32. Rfc1 {[%emt 0:01:31]} Re4 {[%emt 0:03:06]} 33. Rxc6 {[%emt 0:01:31]} Re1+ {[%emt 0:00:52]} 34. Rxe1 {[%emt 0:00:07]} Qxe1+ {[%emt 0:00:19]} 35. Kh2 {[%emt 0:00:05]} Qe5+ {[%emt 0:00:41]} 36. Kg1 {[%emt 0:03:58]} Qa1+ {[%emt 0:00:57]} 37. Kh2 {[%emt 0:00:55]} Qe5+ {[%emt 0:00:34]} 38. Qg3 {[%emt 0:00:08]} Qxg3+ {[%emt 0:00:13]} 39. Kxg3 {[%emt 0:00:37]} Re3+ {[%emt 0:00:02]} 40. Kg4 {[%emt 0:00:09]} Rxb3 {[%emt 0:00:25]} 41. Kxg5 {[%emt 0:40:17]} Rg3+ {[%emt 0:40:43]} 42. Kf6 {[%emt 0:00:10]} h5 {[%emt 0:00:10]} 43. Rc2 {[%emt 0:01:06]} Ra3 {[%emt 0:04:59]} 44. Kg5 {[%emt 0:00:12]} Rxa4 {[%emt 0:00:50]} 45. Kxh5 {[%emt 0:00:12]} Kf7 {[%emt 0:00:58]} 46. Kg5 {[%emt 0:00:16]} Ke6 {[%emt 0:00:00]} 47. Re2+ {[%emt 0:00:00]} Kd6 {[%emt 0:00:00]} 48. h4 {[%emt 0:00:00]} d4 {[%emt 0:00:00]} 49. h5 {[%emt 0:00:00]} Kd5 {[%emt 0:00:00]} 50. h6 {[%emt 0:00:00]} d3 {[%emt 0:00:00]} 51. Re8 {[%emt 0:00:00]} Ra7 {[%emt 0:00:00]} 52. Rd8+ {[%emt 0:00:00]} Ke4 {[%emt 0:00:00]} 53. g4 {[%emt 0:00:00]} Ra5+ {[%emt 0:00:00]} 54. Kg6 {[%emt 0:00:00]} Ra6+ {[%emt 0:00:00]} 55. Kg7 {[%emt 0:00:00]} d2 {[%emt 0:00:00]} 56. h7 {[%emt 0:00:00]} Ra7+ {[%emt 0:00:00]} 57. Kh6 {[%emt 0:00:00]} Ra6+ {[%emt 0:00:00]} 58. Kh5 {[%emt 0:00:00]} Ra5+ {[%emt 0:00:00]} 59. Kg6 {[%emt 0:00:00]} Ra6+ {[%emt 0:00:00]} 60. Kg7 {[%emt 0:00:00]} Ra7+ {[%emt 0:00:00]} 61. Kg8 {[%emt 0:00:00]} Ra8 {[%emt 0:00:00]} 62. Rxa8 {[%emt 0:00:00]} d1=Q {[%emt 0:00:00]} 63. h8=Q {[%emt 0:00:00]} Qd5+ {[%emt 0:01:36]} 64. Kh7 {[%emt 0:00:00]} Qb7+ {[%emt 0:00:09]} 65. Kg6 {[%emt 0:00:00]} Qc6+ {[%emt 0:00:42]} 66. Kh5 {[%emt 0:00:00]} Qc5+ {[%emt 0:00:18]} 67. g5 {[%emt 0:00:00]} 1-0

[Event "Fagernes Chess Open 2024"]
[Site "Fagernes"]
[Date "2024.03.28"]
[Round "6.2"]
[White "Hausken, Andreas Skrede"]
[Black "Halvorsen, Benjamin"]
[Result "1-0"]
[ECO "B22"]
[WhiteElo "1963"]
[BlackElo "1848"]
[Annotator "NA RC"]
[PlyCount "135"]
[EventDate "2024.03.25"]
[EventType "swiss"]
[EventCountry "NOR"]
[SourceTitle "playchess.com"]
[Source "ChessBase"]
[SourceQuality "1"]
[TimeControl "40/6000+30:2400+30"]

1. e4 {[%emt 0:00:07]} c5 {[%emt 0:03:35]} 2. c3 {[%emt 0:00:05]} d5 {[%emt 0:00:04]} 3. exd5 {[%emt 0:00:04]} Nf6 {[%emt 0:00:04]} 4. Qa4+ {[%emt 0:00:04]} Nbd7 {[%emt 0:00:13]} 5. Qb3 {[%emt 0:00:32]} g6 {[%emt 0:00:45]} 6. Nf3 {[%emt 0:00:04] B22: Sizilianisch (Alapin 2.c3).} Bg7 {[%emt 0:00:30]} 7. Be2 {[%emt 0:01:12]} O-O {[%emt 0:00:34]} 8. O-O {[%emt 0:00:30]} b6 {[%emt 0:00:11]} 9. d3 {[%emt 0:01:26]} Bb7 {[%emt 0:00:59]} 10. c4 {[%emt 0:00:04]} e6 {[%emt 0:06:45]} 11. dxe6 {[%emt 0:00:33]} fxe6 {[%emt 0:00:08]} 12. Nc3 {[%emt 0:09:01]} Qe7 {[%emt 0:08:56]} 13. Ng5 {[%emt 0:10:04]} Ne5 {[%emt 0:04:01]} 14. Nce4 {[%emt 0:02:24]} Nxe4 {[%emt 0:14:51]} 15. dxe4 {[%emt 0:10:38]} h6 {[%emt 0:03:23]} 16. Nf3 {[%emt 0:01:07]} Bxe4 {[%emt 0:10:13]} 17. Nxe5 {[%emt 0:00:48]} Bxe5 {[%emt 0:00:08]} 18. Qe3 {[%emt 0:01:42]} Qb7 {[%emt 0:00:13]} 19. Bg4 $11 {[%emt 0:01:52]} Bf4 {[%emt 0:14:41]} 20. Bxe6+ {[%emt 0:01:19]} Kh7 {[%emt 0:00:13]} 21. Qh3 {[%emt 0:00:22]} Rae8 {[%emt 0:02:58]} 22. Bxf4 {[%emt 0:06:47]} Rxf4 {[%emt 0:00:08]} 23. Rfe1 {[%emt 0:00:29]} Ref8 {[%emt 0:13:07]} 24. Rad1 {[%emt 0:03:26]} Bf5 {[%emt 0:01:11]} 25. Qe3 {[%emt 0:07:03]} Bxe6 {[%emt 0:02:11]} 26. Qxe6 {[%emt 0:00:02]} R8f7 {[%emt 0:00:40]} 27. f3 {[%emt 0:01:55]} R4f6 {[%emt 0:01:09]} 28. Qe8 {[%emt 0:00:24]} Qc6 {[%emt 0:03:38]} 29. Rd8 {[%emt 0:01:59]} Qxe8 {[%emt 0:00:10]} 30. Rexe8 {[%emt 0:00:05]} g5 {[%emt 0:00:22]} 31. h4 {[%emt 0:03:31]} gxh4 {[%emt 0:07:58]} 32. Kh2 {[%emt 0:00:09]} Rg7 {[%emt 0:03:09]} 33. Re4 {[%emt 0:01:03]} Rff7 {[%emt 0:03:48]} 34. b3 {[%emt 0:01:17]} Rd7 {[%emt 0:00:50]} 35. Rxd7 {[%emt 0:00:14]} Rxd7 {[%emt 0:00:01]} 36. Kh3 {[%emt 0:00:09]} Kg6 {[%emt 0:00:14]} 37. Kxh4 {[%emt 0:00:10]} Rd2 {[%emt 0:00:23]} 38. g4 {[%emt 0:01:21]} Rxa2 {[%emt 0:00:42]} 39. Re6+ {[%emt 0:00:16]} Kg7 {[%emt 0:00:16]} 40. Kg3 {[%emt 0:00:37]} Ra3 {[%emt 0:02:29]} 41. Re3 {[%emt 0:42:59]} b5 {[%emt 0:10:17]} 42. Kf4 {[%emt 0:00:00]} bxc4 {[%emt 0:02:24]} 43. bxc4 {[%emt 0:00:00]} Ra4 {[%emt 0:00:43]} 44. Rc3 {[%emt 0:00:00]} Kf6 {[%emt 0:00:46]} 45. Ke4 {[%emt 0:00:00]} Ke6 {[%emt 0:01:57]} 46. f4 {[%emt 0:00:00]} Ra1 {[%emt 0:00:22]} 47. Rh3 {[%emt 0:00:00]} Re1+ {[%emt 0:01:54]} 48. Kf3 {[%emt 0:00:00]} Rf1+ {[%emt 0:00:25]} 49. Ke3 {[%emt 0:00:00]} Re1+ {[%emt 0:00:06]} 50. Kf2 {[%emt 0:00:00]} Re4 {[%emt 0:00:17]} 51. Rxh6+ {[%emt 0:00:00]} Kf7 {[%emt 0:01:17]} 52. Kf3 {[%emt 0:00:00]} Rxc4 {[%emt 0:00:07]} 53. Ra6 {[%emt 0:00:00]} Rc1 {[%emt 0:01:17]} 54. Ke4 {[%emt 0:00:00]} Re1+ {[%emt 0:03:00]} 55. Kf5 {[%emt 0:00:00]} Re7 {[%emt 0:00:18]} 56. Rc6 {[%emt 0:00:00]} a5 {[%emt 0:00:20]} 57. Rxc5 {[%emt 0:00:00]} Ra7 {[%emt 0:00:06]} 58. g5 {[%emt 0:00:00]} a4 {[%emt 0:00:54]} 59. g6+ {[%emt 0:00:00]} Kg7 {[%emt 0:11:59]} 60. Kg5 {[%emt 0:00:00]} a3 {[%emt 0:00:28]} 61. f5 {[%emt 0:00:00]} Ra8 {[%emt 0:00:12]} 62. f6+ {[%emt 0:00:00]} Kg8 {[%emt 0:00:26]} 63. g7 {[%emt 0:00:00]} Kh7 {[%emt 0:01:28]} 64. Rc1 {[%emt 0:00:00]} Ra5+ {[%emt 0:07:18]} 65. Kg4 {[%emt 0:00:00]} Ra8 {[%emt 0:01:56]} 66. Rh1+ {[%emt 0:00:00]} Kg6 {[%emt 0:00:38]} 67. Rh8 {[%emt 0:00:00]} Rb8 {[%emt 0:00:02]} 68. Rh1 {[%emt 0:00:11]} 1-0

[Event "Fagernes Chess Open 2024"]
[Site "Fagernes"]
[Date "2024.03.28"]
[Round "6.4"]
[White "Brattgjerd, August Minh"]
[Black "Andersen, Dag"]
[Result "1-0"]
[ECO "A45"]
[WhiteElo "1689"]
[BlackElo "1899"]
[Annotator "NA RC"]
[PlyCount "52"]
[EventDate "2024.03.25"]
[EventType "swiss"]
[EventCountry "NOR"]
[SourceTitle "playchess.com"]
[Source "ChessBase"]
[SourceQuality "1"]
[TimeControl "40/6000+30:2400+30"]

1. d4 {[%emt 0:00:11]} Nf6 {[%emt 0:00:09]} 2. Bf4 {[%emt 0:00:06]} e6 {[%emt 0:00:09]} 3. e3 {[%emt 0:00:05]} c5 {[%emt 0:00:40]} 4. c3 {[%emt 0:00:07]} cxd4 {[%emt 0:00:11]} 5. exd4 {[%emt 0:00:11]} Nc6 {[%emt 0:02:04]} 6. Bd3 {[%emt 0:00:26] A45: Trompowsky Attack.} b6 {[%emt 0:03:01]} 7. Nd2 {[%emt 0:01:19]} Bb7 {[%emt 0:00:18]} 8. Ngf3 {[%emt 0:00:39]} d6 {[%emt 0:00:29]} 9. O-O {[%emt 0:01:18]} Be7 {[%emt 0:00:13]} 10. Re1 {[%emt 0:01:56]} O-O {[%emt 0:03:27]} 11. Ne4 {[%emt 0:03:34]} Nxe4 {[%emt 0:06:26]} 12. Bxe4 {[%emt 0:00:12]} Qd7 {[%emt 0:03:19]} 13. d5 {[%emt 0:04:58]} Nd8 {[%emt 0:01:41]} 14. dxe6 {[%emt 0:01:23]} fxe6 {[%emt 0:01:15]} 15. Bxb7 {[%emt 0:00:46]} Nxb7 {[%emt 0:01:29]} 16. Bg3 {[%emt 0:02:34]} Rad8 {[%emt 0:02:10]} 17. Qe2 {[%emt 0:02:41]} e5 {[%emt 0:01:33]} 18. Rad1 {[%emt 0:03:38]} Qc8 {[%emt 0:02:10]} 19. Qc2 {[%emt 0:14:34]} Rf7 {[%emt 0:03:50]} 20. Bh4 {[%emt 0:02:27]} Bxh4 {[%emt 0:04:34]} 21. Nxh4 {[%emt 0:00:15]} Nc5 {[%emt 0:02:29]} 22. Nf3 {[%emt 0:01:43]} Ne6 {[%emt 0:01:06]} 23. Qb3 {[%emt 0:03:08]} Kh8 $18 {[%emt 0:03:38]} (23... e4 $11 {and Black stays safe.} 24. Qd5 (24. Rxe4 Nc5 $17) 24... Nf4 25. Qxe4 d5) 24. Nxe5 {[%emt 0:11:42]} dxe5 {[%emt 0:16:18]} 25. Qxe6 {[%emt 0:01:03]} Rfd7 {[%emt 0:00:02]} 26. Rxd7 {[%emt 0:00:31]} Rxd7 {[%emt 0:04:22]} 1-0

[Event "Fagernes Chess Open 2024"]
[Site "Fagernes"]
[Date "2024.03.28"]
[Round "6.5"]
[White "Rolstad, Morten"]
[Black "Spanton, Tim R"]
[Result "1-0"]
[ECO "C65"]
[WhiteElo "1879"]
[BlackElo "1876"]
[Annotator "NA RC"]
[PlyCount "57"]
[EventDate "2024.03.25"]
[EventType "swiss"]
[EventCountry "NOR"]
[SourceTitle "playchess.com"]
[Source "ChessBase"]
[SourceQuality "1"]
[TimeControl "40/6000+30:2400+30"]

1. e4 {[%emt 0:00:08]} e5 {[%emt 0:00:03]} 2. Nf3 {[%emt 0:00:19]} Nc6 {[%emt 0:00:07]} 3. Bb5 {[%emt 0:00:20]} Nf6 {[%emt 0:00:06]} 4. d3 {[%emt 0:00:20]} Bc5 {[%emt 0:00:04]} 5. Bxc6 {[%emt 0:00:51]} dxc6 {[%emt 0:00:06]} 6. Nbd2 {[%emt 0:00:19]} Qe7 {[%emt 0:01:04]} 7. Nc4 {[%emt 0:01:26]} Nd7 {[%emt 0:02:40]} 8. Bd2 {[%emt 0:01:06]} f6 {[%emt 0:01:35]} 9. Qe2 {[%emt 0:01:25]} Nf8 {[%emt 0:02:19]} 10. Ne3 {[%emt 0:05:13]} Ne6 {[%emt 0:01:27]} 11. Nf5 {[%emt 0:04:48]} Qf7 {[%emt 0:01:46]} 12. a4 {[%emt 0:10:37]} a5 {[%emt 0:00:57]} 13. O-O {[%emt 0:08:33]} b6 {[%emt 0:01:28]} 14. c3 {[%emt 0:00:43]} Ba6 {[%emt 0:01:28]} 15. Rfd1 $17 {[%emt 0:12:31]} Rd8 {[%emt 0:00:59]} 16. Be3 {[%emt 0:00:48]} O-O {[%emt 0:07:12]} 17. Qc2 {[%emt 0:06:28]} Bxe3 {[%emt 0:06:51]} 18. fxe3 {[%emt 0:01:22]} c5 {[%emt 0:02:54]} 19. d4 {[%emt 0:10:42]} cxd4 {[%emt 0:01:20]} 20. cxd4 {[%emt 0:00:28]} exd4 {[%emt 0:00:24]} 21. exd4 {[%emt 0:00:25]} Nf4 {[%emt 0:00:46]} 22. Qd2 {[%emt 0:05:24]} Ne2+ {[%emt 0:04:56]} 23. Kf2 {[%emt 0:05:30]} Nxd4 {[%emt 0:00:15]} 24. N3xd4 {[%emt 0:01:57]} c5 {[%emt 0:00:17]} 25. Qf4 {[%emt 0:03:13]} cxd4 {[%emt 0:00:39]} 26. Rac1 {[%emt 0:02:08]} Qb3 {[%emt 0:03:42]} 27. Rc7 {[%emt 0:04:46]} g5 {[%emt 0:04:11]} 28. Rg7+ {[%emt 0:03:35]} Kh8 {[%emt 0:00:05]} 29. Qc7 {[%emt 0:00:23]} 1-0

[Event "Fagernes Chess Open 2024"]
[Site "Fagernes"]
[Date "2024.03.28"]
[Round "6.6"]
[White "Kuzmenko, Mykhailo"]
[Black "Sushrutha, Reddy"]
[Result "0-1"]
[ECO "D02"]
[WhiteElo "1747"]
[BlackElo "1707"]
[Annotator "NA RC"]
[PlyCount "134"]
[EventDate "2024.03.25"]
[EventType "swiss"]
[EventCountry "NOR"]
[SourceTitle "playchess.com"]
[Source "ChessBase"]
[SourceQuality "1"]
[TimeControl "40/6000+30:2400+30"]

1. d4 {[%emt 0:00:02]} Nf6 {[%emt 0:00:49]} 2. Bf4 {[%emt 0:00:12]} g6 {[%emt 0:00:15]} 3. e3 {[%emt 0:00:17]} Bg7 {[%emt 0:00:08]} 4. Nf3 {[%emt 0:00:12]} O-O {[%emt 0:00:16]} 5. h3 {[%emt 0:00:17]} c5 {[%emt 0:00:39]} 6. c3 {[%emt 0:00:35]} cxd4 {[%emt 0:00:20]} 7. exd4 {[%emt 0:00:21]} d5 {[%emt 0:00:18]} 8. Be2 {[%emt 0:00:32]} Nbd7 {[%emt 0:00:26]} 9. O-O {[%emt 0:00:18]} Ne4 {[%emt 0:00:10]} 10. Nbd2 {[%emt 0:00:42]} Ndf6 {[%emt 0:00:14]} 11. Re1 {[%emt 0:01:15]} Bf5 {[%emt 0:01:29]} 12. Qb3 {[%emt 0:02:57]} Nd6 {[%emt 0:02:07]} 13. Bf1 {[%emt 0:01:38]} Re8 {[%emt 0:02:49]} 14. a4 {[%emt 0:06:12]} b6 {[%emt 0:05:41]} 15. Ne5 {[%emt 0:21:37]} a6 {[%emt 0:09:10]} 16. Qb4 {[%emt 0:16:57]} Bf8 {[%emt 0:04:08]} 17. Nc6 {[%emt 0:08:09]} Qc7 {[%emt 0:01:30]} 18. Ne5 {[%emt 0:04:43]} Nd7 {[%emt 0:19:52]} 19. Nxd7 {[%emt 0:02:53]} Bxd7 {[%emt 0:00:30]} 20. Bxd6 {[%emt 0:00:17]} exd6 {[%emt 0:00:38]} 21. Rxe8 {[%emt 0:00:19]} Bxe8 {[%emt 0:00:09]} 22. Qb3 {[%emt 0:02:51]} Bh6 {[%emt 0:01:12]} 23. Nf3 {[%emt 0:00:58]} Bc6 {[%emt 0:01:59]} 24. Qc2 {[%emt 0:00:24]} Qd7 {[%emt 0:00:41]} 25. Qb3 {[%emt 0:01:04]} Qd8 {[%emt 0:01:36]} 26. Re1 {[%emt 0:02:43]} Qc7 {[%emt 0:05:05]} 27. Ra1 {[%emt 0:01:34]} Bb7 {[%emt 0:00:36]} 28. Nh2 {[%emt 0:00:24]} Re8 {[%emt 0:01:32]} 29. Ng4 {[%emt 0:00:18]} Bg5 {[%emt 0:01:01]} 30. g3 {[%emt 0:01:11]} h5 {[%emt 0:00:41]} 31. Nh2 {[%emt 0:00:26]} h4 {[%emt 0:01:28]} 32. g4 {[%emt 0:00:34]} f5 {[%emt 0:01:19]} 33. Bg2 {[%emt 0:00:39]} Qc6 {[%emt 0:06:12]} 34. gxf5 {[%emt 0:04:15]} gxf5 {[%emt 0:01:56]} 35. c4 {[%emt 0:00:31]} Qc7 {[%emt 0:00:58]} 36. cxd5 {[%emt 0:00:33]} Bc8 {[%emt 0:02:48]} 37. Qd3 {[%emt 0:02:57]} Qg7 {[%emt 0:00:54]} 38. Nf3 {[%emt 0:02:07]} Bf6 {[%emt 0:03:23]} 39. Rc1 {[%emt 0:00:41]} Kh8 {[%emt 0:00:58]} 40. Kh2 {[%emt 0:03:49]} Qh6 {[%emt 0:01:29]} 41. Rd1 {[%emt 0:57:07]} Qf4+ {[%emt 0:44:05]} 42. Kh1 {[%emt 0:00:30]} Bb7 {[%emt 0:00:26]} 43. Qb3 {[%emt 0:04:53]} Bd8 {[%emt 0:00:59]} 44. Qc4 {[%emt 0:00:00]} Re7 {[%emt 0:00:00]} 45. b4 {[%emt 0:00:00]} Kg7 {[%emt 0:00:00]} 46. b5 {[%emt 0:00:00]} a5 {[%emt 0:00:00]} 47. Qa2 {[%emt 0:00:00]} Bc8 {[%emt 0:00:00]} 48. Qd2 {[%emt 0:00:00]} Qxd2 {[%emt 0:00:00]} 49. Rxd2 {[%emt 0:00:00]} Rc7 {[%emt 0:00:00]} 50. Ne1 {[%emt 0:00:00]} Rc1 {[%emt 0:00:00]} 51. Re2 {[%emt 0:00:00]} Bf6 {[%emt 0:00:00]} 52. Kh2 {[%emt 0:00:00]} Bxd4 {[%emt 0:00:00]} 53. f4 {[%emt 0:00:00]} Kf7 {[%emt 0:00:00]} 54. Nf3 {[%emt 0:00:00]} Bf6 {[%emt 0:00:00]} 55. Ne1 {[%emt 0:02:34]} Ra1 {[%emt 0:00:00]} 56. Bf3 {[%emt 0:00:00]} Bd7 {[%emt 0:00:00]} 57. Bh5+ {[%emt 0:00:00]} Kf8 {[%emt 0:00:00]} 58. Nf3 {[%emt 0:00:00]} Rxa4 {[%emt 0:00:00]} 59. Ng5 {[%emt 0:00:00]} Rxf4 {[%emt 0:00:00]} 60. Ne6+ {[%emt 0:00:00]} Bxe6 {[%emt 0:00:00]} 61. dxe6 {[%emt 0:00:00]} Be5 {[%emt 0:00:00]} 62. Kg2 {[%emt 0:00:00]} Ke7 {[%emt 0:00:00]} 63. Bf7 {[%emt 0:00:00]} Rb4 {[%emt 0:00:00]} 64. Rc2 {[%emt 0:00:00]} Rb2 {[%emt 0:00:00]} 65. Rxb2 {[%emt 0:00:00]} Bxb2 {[%emt 0:00:00]} 66. Kf3 {[%emt 0:00:00]} a4 {[%emt 0:00:00]} 67. Bg6 {[%emt 0:00:00]} a3 {[%emt 0:00:00]} 0-1